[Event "*** Titled Tuesday Blitz"]
[Site "Chess.com"]
[Date "2018.10.02"]
[Round "5"]
[White "Zarikovs1999"]
[Black "MikeSailer"]
[Result "1-0"]
[WhiteElo "2194"]
[BlackElo "2056"]
[TimeControl "180+2"]
[EndTime "14:04:52 PDT"]
[Termination "Zarikovs1999 won by resignation"]

1. Nf3 {[%clk 0:03:01.9]} 1... d5 {[%clk 0:02:58.6]} 2. g3 {[%clk 0:02:57.2]}
2... Nf6 {[%clk 0:02:57.6]} 3. Bg2 {[%clk 0:02:59.1]} 3... Bf5 {[%clk
0:02:58.5]} 4. O-O {[%clk 0:03:01]} 4... e6 {[%clk 0:03:00.1]} 5. d3 {[%clk
0:03:00.4]} 5... Be7 {[%clk 0:03:01.4]} 6. Nbd2 {[%clk 0:03:00.9]} 6... O-O
{[%clk 0:03:02.3]} 7. Qe1 {[%clk 0:03:00.9]} 7... h6 {[%clk 0:03:00.1]} 8. e4
{[%clk 0:03:01.4]} 8... Bh7 {[%clk 0:03:01]} 9. b3 {[%clk 0:02:57.2]} 9... c5
{[%clk 0:02:59.5]} 10. Bb2 {[%clk 0:02:57.8]} 10... Nc6 {[%clk 0:03:00.1]} 11.
a3 {[%clk 0:02:48.4]} 11... a5 {[%clk 0:02:55.3]} 12. h3 {[%clk 0:02:46.1]}
12... a4 {[%clk 0:02:55]} 13. Nh2 {[%clk 0:02:40.6]} 13... axb3 {[%clk
0:02:51.4]} 14. cxb3 {[%clk 0:02:42.5]} 14... Nd4 {[%clk 0:02:40.5]} 15. Bxd4
{[%clk 0:02:26.1]} 15... cxd4 {[%clk 0:02:40.7]} 16. b4 {[%clk 0:02:24]} 16...
dxe4 {[%clk 0:02:28]} 17. Nxe4 {[%clk 0:02:20.5]} 17... Nd5 {[%clk 0:02:15]} 18.
Nf3 {[%clk 0:02:03.4]} 18... Qb6 {[%clk 0:01:49.5]} 19. Ne5 {[%clk 0:01:58.7]}
19... Rfd8 {[%clk 0:01:33.3]} 20. Nc4 {[%clk 0:01:55]} 20... Qa6 {[%clk
0:01:14.4]} 21. Na5 {[%clk 0:01:47.7]} 21... Qxd3 {[%clk 0:01:01]} 22. Nxb7
{[%clk 0:01:46.7]} 22... Rdb8 {[%clk 0:00:45.6]} 23. Nbc5 {[%clk 0:01:45.3]}
23... Bxc5 {[%clk 0:00:40.3]} 24. Nxc5 {[%clk 0:01:47.2]} 24... Qb5 {[%clk
0:00:26.9]} 25. Bxd5 {[%clk 0:01:43.4]} 25... exd5 {[%clk 0:00:27]} 26. Qd2
{[%clk 0:01:45.3]} 26... d3 {[%clk 0:00:25.9]} 27. Rfe1 {[%clk 0:01:41.7]} 27...
Qc4 {[%clk 0:00:24.1]} 28. Rac1 {[%clk 0:01:35]} 28... Qd4 {[%clk 0:00:21.6]}
29. Rc3 {[%clk 0:01:33.6]} 29... Re8 {[%clk 0:00:13.6]} 30. Rxe8+ {[%clk
0:01:23.9]} 30... Rxe8 {[%clk 0:00:14.4]} 31. Nxd3 {[%clk 0:01:24.2]} 31... Be4
{[%clk 0:00:10.8]} 32. Qe1 {[%clk 0:01:08]} 32... Kh7 {[%clk 0:00:08.5]} 33. Nc5
{[%clk 0:00:58.1]} 33... Qe5 {[%clk 0:00:04.1]} 34. Nxe4 {[%clk 0:00:55.4]}
34... dxe4 {[%clk 0:00:05.4]} 35. Re3 {[%clk 0:00:56.6]} 35... Qf5 {[%clk
0:00:06.5]} 36. Kg2 {[%clk 0:00:50.6]} 36... Qg6 {[%clk 0:00:07.9]} 37. Qc3
{[%clk 0:00:45.7]} 37... f5 {[%clk 0:00:08.9]} 38. Qc7 {[%clk 0:00:47.2]} 38...
f4 {[%clk 0:00:09]} 39. Qxf4 {[%clk 0:00:47.4]} 39... Qa6 {[%clk 0:00:09]} 40.
Rxe4 {[%clk 0:00:44.7]} 40... Qb7 {[%clk 0:00:10.1]} 41. Kf3 {[%clk 0:00:42.8]}
41... Rd8 {[%clk 0:00:07.7]} 42. Qf5+ {[%clk 0:00:39.8]} 42... Kg8 {[%clk
0:00:08.8]} 43. Qe6+ {[%clk 0:00:39]} 43... Kh8 {[%clk 0:00:09.7]} 44. Qe7
{[%clk 0:00:37.6]} 44... Rd3+ {[%clk 0:00:08.2]} 45. Kg2 {[%clk 0:00:36.7]}
45... Qd5 {[%clk 0:00:08.6]} 46. Qe8+ {[%clk 0:00:32.1]} 46... Kh7 {[%clk
0:00:10.1]} 47. Qe5 {[%clk 0:00:33]} 47... Qd7 {[%clk 0:00:08]} 48. b5 {[%clk
0:00:30.9]} 48... Rd2 {[%clk 0:00:08.7]} 49. Rf4 {[%clk 0:00:28.4]} 49... Qb7+
{[%clk 0:00:09]} 50. Qe4+ {[%clk 0:00:29.7]} 50... Qxe4+ {[%clk 0:00:10.1]} 51.
Rxe4 {[%clk 0:00:31.6]} 51... Rb2 {[%clk 0:00:10.8]} 52. Rb4 {[%clk 0:00:31.2]}
52... Ra2 {[%clk 0:00:09.6]} 53. b6 {[%clk 0:00:31.5]} 1-0

[Event "*** Titled Tuesday Blitz"]
[Site "Chess.com"]
[Date "2018.10.02"]
[Round "5"]
[White "Alopekos"]
[Black "Lovkov_Roman"]
[Result "0-1"]
[WhiteElo "2436"]
[BlackElo "2632"]
[TimeControl "180+2"]
[EndTime "14:05:16 PDT"]
[Termination "Lovkov_Roman won by resignation"]

1. e4 {[%clk 0:03:01.9]} 1... c6 {[%clk 0:03:00.2]} 2. d4 {[%clk 0:03:02.6]}
2... d5 {[%clk 0:03:01.5]} 3. Nd2 {[%clk 0:03:04.1]} 3... dxe4 {[%clk
0:03:02.2]} 4. Nxe4 {[%clk 0:03:06]} 4... Bf5 {[%clk 0:03:03.4]} 5. Ng3 {[%clk
0:03:07]} 5... Bg6 {[%clk 0:03:04.7]} 6. h4 {[%clk 0:03:08.7]} 6... h6 {[%clk
0:03:04.7]} 7. Nf3 {[%clk 0:03:10.2]} 7... Nd7 {[%clk 0:03:05.5]} 8. h5 {[%clk
0:03:11.8]} 8... Bh7 {[%clk 0:03:06.4]} 9. Bd3 {[%clk 0:03:13.7]} 9... Bxd3
{[%clk 0:03:07]} 10. Qxd3 {[%clk 0:03:15.6]} 10... e6 {[%clk 0:03:08.7]} 11. Bd2
{[%clk 0:03:16.8]} 11... Ngf6 {[%clk 0:03:09]} 12. O-O-O {[%clk 0:03:18.3]}
12... Be7 {[%clk 0:03:07.5]} 13. Kb1 {[%clk 0:03:18.9]} 13... Qb6 {[%clk
0:03:08.4]} 14. c4 {[%clk 0:03:19.3]} 14... Rd8 {[%clk 0:03:07.6]} 15. Bc3
{[%clk 0:03:17.3]} 15... O-O {[%clk 0:03:03.5]} 16. Rhe1 {[%clk 0:02:56.3]}
16... Rfe8 {[%clk 0:02:59.9]} 17. Qc2 {[%clk 0:02:44.2]} 17... Qc7 {[%clk
0:02:41.3]} 18. Ne5 {[%clk 0:02:30.9]} 18... b5 {[%clk 0:02:33.2]} 19. Nxf7
{[%clk 0:02:14.1]} 19... Kxf7 {[%clk 0:02:32.9]} 20. Rxe6 {[%clk 0:02:02.1]}
20... Nf8 {[%clk 0:02:23.1]} 21. Re2 {[%clk 0:01:33.6]} 21... bxc4 {[%clk
0:02:20.9]} 22. d5 {[%clk 0:00:47.2]} 22... Rxd5 {[%clk 0:02:18]} 23. Rxd5
{[%clk 0:00:43]} 23... cxd5 {[%clk 0:02:18.7]} 24. Nf5 {[%clk 0:00:30.6]} 24...
Qd7 {[%clk 0:02:14.7]} 25. g4 {[%clk 0:00:18]} 25... Bc5 {[%clk 0:01:58.7]} 26.
Rxe8 {[%clk 0:00:13.1]} 26... Qxe8 {[%clk 0:01:57.6]} 27. Bd4 {[%clk 0:00:06.1]}
27... Bxd4 {[%clk 0:01:56.9]} 28. Nd6+ {[%clk 0:00:07.2]} 28... Ke7 {[%clk
0:01:51.1]} 29. Nxe8 {[%clk 0:00:09.1]} 29... Nxe8 {[%clk 0:01:44.7]} 30. Qe2+
{[%clk 0:00:03.9]} 30... Kf7 {[%clk 0:01:38.1]} 31. f4 {[%clk 0:00:01.9]} 31...
Nf6 {[%clk 0:01:35.5]} 32. Qf3 {[%clk 0:00:02.8]} 32... Ne4 {[%clk 0:01:35.9]}
33. Kc2 {[%clk 0:00:02.9]} 33... Ne6 {[%clk 0:01:36]} 34. g5 {[%clk 0:00:03.7]}
34... Ke7 {[%clk 0:01:31.8]} 35. gxh6 {[%clk 0:00:03.3]} 35... gxh6 {[%clk
0:01:32.9]} 36. Qg4 {[%clk 0:00:03.3]} 36... Bf6 {[%clk 0:01:31.5]} 37. Qg6
{[%clk 0:00:03.6]} 37... Nd4+ {[%clk 0:01:32.6]} 38. Kd1 {[%clk 0:00:03.6]}
38... Nf2+ {[%clk 0:01:32.2]} 39. Kc1 {[%clk 0:00:04.3]} 39... Nd3+ {[%clk
0:01:30.3]} 40. Kb1 {[%clk 0:00:05.5]} 40... Nxf4 {[%clk 0:01:26.6]} 41. Qxh6
{[%clk 0:00:05.4]} 41... Nfe6 {[%clk 0:01:26.7]} 42. Qh7+ {[%clk 0:00:06.4]}
42... Kd6 {[%clk 0:01:27.6]} 43. Qxa7 {[%clk 0:00:07.1]} 43... Bg5 {[%clk
0:01:27]} 44. a4 {[%clk 0:00:07.2]} 44... Nb3 {[%clk 0:01:25.4]} 45. a5 {[%clk
0:00:05.8]} 45... d4 {[%clk 0:01:21.5]} 46. Qb6+ {[%clk 0:00:04.8]} 46... Kd5
{[%clk 0:01:21.3]} 47. Qb7+ {[%clk 0:00:04.2]} 47... Ke5 {[%clk 0:01:13.3]} 48.
Qb5+ {[%clk 0:00:05]} 48... Ke4 {[%clk 0:01:14.3]} 49. Qc6+ {[%clk 0:00:05.2]}
49... Ke5 {[%clk 0:01:14]} 50. Qb5+ {[%clk 0:00:05.4]} 50... Nec5 {[%clk
0:01:15.3]} 51. a6 {[%clk 0:00:05.8]} 51... d3 {[%clk 0:01:16.4]} 52. Qb8+
{[%clk 0:00:06.6]} 52... Kd5 {[%clk 0:01:15.4]} 53. Qa8+ {[%clk 0:00:06.2]}
53... Kd4 {[%clk 0:01:15.1]} 54. Qh8+ {[%clk 0:00:05.6]} 54... Ke3 {[%clk
0:01:15.6]} 55. Qe5+ {[%clk 0:00:06.3]} 55... Ne4 {[%clk 0:01:15.8]} 56. Qh2
{[%clk 0:00:05.1]} 56... d2 {[%clk 0:01:15]} 57. Qg1+ {[%clk 0:00:05.2]} 57...
Ke2 {[%clk 0:01:13.1]} 58. a7 {[%clk 0:00:05.9]} 58... Be3 {[%clk 0:01:11.5]}
59. Qg4+ {[%clk 0:00:04.3]} 59... Ke1 {[%clk 0:01:08.6]} 60. a8=Q {[%clk
0:00:05.8]} 60... d1=Q+ {[%clk 0:01:08.5]} 61. Qxd1+ {[%clk 0:00:06.3]} 61...
Kxd1 {[%clk 0:01:10.4]} 62. Qd5+ {[%clk 0:00:06.1]} 62... Ned2+ {[%clk
0:01:11.4]} 63. Ka2 {[%clk 0:00:07.3]} 63... Bc5 {[%clk 0:01:08.8]} 64. h6
{[%clk 0:00:07.4]} 64... Nc1+ {[%clk 0:01:06.9]} 65. Ka1 {[%clk 0:00:07.5]}
65... Kc2 {[%clk 0:01:06.6]} 66. Qxd2+ {[%clk 0:00:06.7]} 66... Kxd2 {[%clk
0:01:07.2]} 67. h7 {[%clk 0:00:08.1]} 67... Bd4 {[%clk 0:01:06]} 68. Kb1 {[%clk
0:00:08.8]} 68... Nd3 {[%clk 0:01:04.3]} 69. Ka2 {[%clk 0:00:10]} 0-1

[Event "*** Titled Tuesday Blitz"]
[Site "Chess.com"]
[Date "2018.10.02"]
[Round "5"]
[White "JonahWillow"]
[Black "Kouzari"]
[Result "1-0"]
[WhiteElo "2706"]
[BlackElo "2480"]
[TimeControl "180+2"]
[EndTime "14:06:49 PDT"]
[Termination "JonahWillow won by resignation"]

1. e4 {[%clk 0:03:01.9]} 1... e6 {[%clk 0:02:57.9]} 2. d3 {[%clk 0:03:02.1]}
2... d5 {[%clk 0:02:58.3]} 3. Nd2 {[%clk 0:03:03.4]} 3... Nc6 {[%clk 0:02:59.7]}
4. Ngf3 {[%clk 0:03:00.2]} 4... Nf6 {[%clk 0:03:01.2]} 5. c3 {[%clk 0:02:54.3]}
5... e5 {[%clk 0:03:02.6]} 6. g3 {[%clk 0:02:53.6]} 6... a5 {[%clk 0:03:02.1]}
7. Bg2 {[%clk 0:02:54.8]} 7... dxe4 {[%clk 0:02:58.5]} 8. dxe4 {[%clk
0:02:55.4]} 8... Bd6 {[%clk 0:02:58.1]} 9. O-O {[%clk 0:02:56.4]} 9... O-O
{[%clk 0:02:59.3]} 10. Re1 {[%clk 0:02:57.8]} 10... b6 {[%clk 0:03:00.7]} 11.
Nc4 {[%clk 0:02:59]} 11... Ba6 {[%clk 0:03:01.2]} 12. Nxd6 {[%clk 0:02:59.1]}
12... Qxd6 {[%clk 0:03:01]} 13. Bg5 {[%clk 0:02:58.6]} 13... Qxd1 {[%clk
0:02:37.1]} 14. Raxd1 {[%clk 0:03:00.5]} 14... Ne8 {[%clk 0:02:38.2]} 15. b4
{[%clk 0:02:51]} 15... f6 {[%clk 0:02:24.9]} 16. Bd2 {[%clk 0:02:50.6]} 16...
Nd6 {[%clk 0:02:19.6]} 17. a4 {[%clk 0:02:33.1]} 17... axb4 {[%clk 0:02:14.2]}
18. cxb4 {[%clk 0:02:35]} 18... Bc4 {[%clk 0:02:14.4]} 19. Ra1 {[%clk 0:02:09]}
19... b5 {[%clk 0:01:43.3]} 20. a5 {[%clk 0:02:02.2]} 20... Kf7 {[%clk
0:01:39.9]} 21. Bf1 {[%clk 0:01:49.2]} 21... Bxf1 {[%clk 0:01:40]} 22. Kxf1
{[%clk 0:01:49.9]} 22... Nc4 {[%clk 0:01:41.7]} 23. Bc3 {[%clk 0:01:51.4]} 23...
Rfd8 {[%clk 0:01:41.3]} 24. Ke2 {[%clk 0:01:52.2]} 24... Nb8 {[%clk 0:01:28]}
25. Nd2 {[%clk 0:01:45.2]} 25... Nxd2 {[%clk 0:01:26.2]} 26. Bxd2 {[%clk
0:01:47.1]} 26... Na6 {[%clk 0:01:20.9]} 27. Rac1 {[%clk 0:01:47.1]} 27... Rd6
{[%clk 0:01:19.8]} 28. Be3 {[%clk 0:01:42.4]} 28... Rad8 {[%clk 0:01:19]} 29.
Rc2 {[%clk 0:01:34.2]} 29... Ke6 {[%clk 0:01:08.2]} 30. Bc5 {[%clk 0:01:26.4]}
30... Rd3 {[%clk 0:01:03]} 31. Rec1 {[%clk 0:01:24.3]} 31... Rb3 {[%clk
0:00:58.3]} 32. h4 {[%clk 0:01:05.7]} 32... Rd7 {[%clk 0:00:47.1]} 33. Rc3
{[%clk 0:01:00.3]} 33... Nxc5 {[%clk 0:00:43.8]} 34. bxc5 {[%clk 0:00:49.5]}
34... Rxc3 {[%clk 0:00:44.8]} 35. Rxc3 {[%clk 0:00:51.4]} 35... c6 {[%clk
0:00:38.7]} 36. Ra3 {[%clk 0:00:34.4]} 36... b4 {[%clk 0:00:27.2]} 37. Rd3
{[%clk 0:00:33.4]} 37... Ra7 {[%clk 0:00:21.4]} 38. Rd6+ {[%clk 0:00:32.2]}
38... Kf7 {[%clk 0:00:22.9]} 39. Rxc6 {[%clk 0:00:33.3]} 39... Rxa5 {[%clk
0:00:24.6]} 40. Kd3 {[%clk 0:00:31.4]} 40... Ra3+ {[%clk 0:00:23.5]} 41. Kc4
{[%clk 0:00:29.9]} 41... Rf3 {[%clk 0:00:23.9]} 42. Kxb4 {[%clk 0:00:25.4]}
42... Rxf2 {[%clk 0:00:24.8]} 43. Rc7+ {[%clk 0:00:27]} 43... Kg6 {[%clk
0:00:26]} 44. c6 {[%clk 0:00:25.9]} 44... Re2 {[%clk 0:00:27.2]} 45. h5+ {[%clk
0:00:25.4]} 45... Kh6 {[%clk 0:00:27.4]} 46. Kc5 {[%clk 0:00:24.2]} 46... Rxe4
{[%clk 0:00:28.3]} 47. Ra7 {[%clk 0:00:24]} 47... Re3 {[%clk 0:00:27.1]} 48. Ra4
{[%clk 0:00:25]} 48... Rc3+ {[%clk 0:00:22.6]} 49. Rc4 {[%clk 0:00:26]} 49...
Ra3 {[%clk 0:00:24.1]} 50. c7 {[%clk 0:00:26.9]} 50... Ra8 {[%clk 0:00:25.5]}
51. Kd5 {[%clk 0:00:24.4]} 51... Rc8 {[%clk 0:00:25.5]} 52. Ke6 {[%clk
0:00:25.2]} 52... Kxh5 {[%clk 0:00:26.6]} 53. Kd7 {[%clk 0:00:22.9]} 53... Rf8
{[%clk 0:00:25.3]} 54. c8=Q {[%clk 0:00:22.3]} 54... Rxc8 {[%clk 0:00:26.2]} 55.
Kxc8 {[%clk 0:00:24.2]} 55... f5 {[%clk 0:00:25.7]} 56. Kd7 {[%clk 0:00:25.1]}
56... e4 {[%clk 0:00:27.2]} 57. Kd6 {[%clk 0:00:21.5]} 57... Kg4 {[%clk
0:00:26.4]} 58. Ke5 {[%clk 0:00:23]} 58... g5 {[%clk 0:00:27.3]} 59. Rc1 {[%clk
0:00:22.4]} 59... e3 {[%clk 0:00:25.7]} 60. Kd4 {[%clk 0:00:21.3]} 60... f4
{[%clk 0:00:16.5]} 61. gxf4 {[%clk 0:00:20.8]} 61... gxf4 {[%clk 0:00:16.7]} 62.
Kd3 {[%clk 0:00:21.8]} 62... Kg3 {[%clk 0:00:13.4]} 63. Ke2 {[%clk 0:00:21.8]}
63... Kg2 {[%clk 0:00:13.5]} 64. Rc8 {[%clk 0:00:19.7]} 64... h5 {[%clk
0:00:12.3]} 65. Rg8+ {[%clk 0:00:19]} 65... Kh2 {[%clk 0:00:13.6]} 66. Kf3
{[%clk 0:00:19.8]} 66... h4 {[%clk 0:00:15.2]} 67. Rf8 {[%clk 0:00:19.4]} 67...
h3 {[%clk 0:00:14.9]} 68. Rg8 {[%clk 0:00:20]} 68... Kh1 {[%clk 0:00:14.6]} 69.
Rg7 {[%clk 0:00:19.5]} 69... Kh2 {[%clk 0:00:07.3]} 70. Rg5 {[%clk 0:00:19.4]}
70... Kh1 {[%clk 0:00:08.1]} 71. Ra5 {[%clk 0:00:19.4]} 71... e2 {[%clk
0:00:06.5]} 72. Kxe2 {[%clk 0:00:19.5]} 72... Kg2 {[%clk 0:00:03.5]} 73. Rg5+
{[%clk 0:00:20.3]} 73... Kh2 {[%clk 0:00:04.9]} 74. Kf2 {[%clk 0:00:19.2]} 74...
Kh1 {[%clk 0:00:03.9]} 75. Ra5 {[%clk 0:00:18.3]} 75... Kh2 {[%clk 0:00:04.6]}
76. Rh5 {[%clk 0:00:17.8]} 76... f3 {[%clk 0:00:05.4]} 77. Rh6 {[%clk 0:00:19]}
1-0

[Event "*** Titled Tuesday Blitz"]
[Site "Chess.com"]
[Date "2018.10.02"]
[Round "5"]
[White "Jospem"]
[Black "Ravan_02"]
[Result "1-0"]
[WhiteElo "2740"]
[BlackElo "2564"]
[TimeControl "180+2"]
[EndTime "14:07:34 PDT"]
[Termination "Jospem won by resignation"]

1. e4 {[%clk 0:03:01.9]} 1... e6 {[%clk 0:02:53.2]} 2. d4 {[%clk 0:03:02.5]}
2... d5 {[%clk 0:02:54.3]} 3. Nc3 {[%clk 0:03:03.9]} 3... Nf6 {[%clk 0:02:54.7]}
4. e5 {[%clk 0:03:04.9]} 4... Nfd7 {[%clk 0:02:54.3]} 5. f4 {[%clk 0:03:06.4]}
5... c5 {[%clk 0:02:55.2]} 6. Nf3 {[%clk 0:03:08]} 6... Nc6 {[%clk 0:02:56.2]}
7. Be3 {[%clk 0:03:09.6]} 7... cxd4 {[%clk 0:02:54.9]} 8. Nxd4 {[%clk
0:03:10.3]} 8... Bc5 {[%clk 0:02:56.4]} 9. Qd2 {[%clk 0:03:10.9]} 9... O-O
{[%clk 0:02:55.3]} 10. O-O-O {[%clk 0:03:11.9]} 10... a6 {[%clk 0:02:56.7]} 11.
Kb1 {[%clk 0:03:09]} 11... Nxd4 {[%clk 0:02:56.6]} 12. Bxd4 {[%clk 0:03:09.8]}
12... b5 {[%clk 0:02:58.2]} 13. h4 {[%clk 0:03:01.9]} 13... b4 {[%clk
0:02:46.7]} 14. Na4 {[%clk 0:03:02.4]} 14... Bxd4 {[%clk 0:02:45.3]} 15. Qxd4
{[%clk 0:03:04.3]} 15... Qa5 {[%clk 0:02:43.8]} 16. b3 {[%clk 0:03:05.3]} 16...
Bb7 {[%clk 0:02:44.4]} 17. Bd3 {[%clk 0:02:53.3]} 17... Bc6 {[%clk 0:02:44.8]}
18. Nb2 {[%clk 0:02:54.4]} 18... Qc5 {[%clk 0:02:33.2]} 19. Be2 {[%clk
0:02:45.2]} 19... a5 {[%clk 0:02:21.3]} 20. Rh3 {[%clk 0:02:35.4]} 20... Qxd4
{[%clk 0:02:08.4]} 21. Rxd4 {[%clk 0:02:37.3]} 21... Nc5 {[%clk 0:02:09]} 22.
Bf3 {[%clk 0:02:25.8]} 22... f6 {[%clk 0:01:44.8]} 23. exf6 {[%clk 0:02:25]}
23... gxf6 {[%clk 0:01:45.5]} 24. Rh1 {[%clk 0:02:25.4]} 24... Rad8 {[%clk
0:01:29.1]} 25. Rhd1 {[%clk 0:02:15.2]} 25... Kh8 {[%clk 0:01:13.6]} 26. Nc4
{[%clk 0:02:10.5]} 26... a4 {[%clk 0:00:48.7]} 27. Na5 {[%clk 0:02:06.2]} 27...
axb3 {[%clk 0:00:48.7]} 28. axb3 {[%clk 0:01:43.4]} 28... Ba8 {[%clk 0:00:44.5]}
29. Rxb4 {[%clk 0:01:41.7]} 29... e5 {[%clk 0:00:37.3]} 30. fxe5 {[%clk
0:01:31.4]} 30... fxe5 {[%clk 0:00:36.5]} 31. Rb5 {[%clk 0:01:32.7]} 31... Rc8
{[%clk 0:00:09.4]} 32. Bxd5 {[%clk 0:01:18.9]} 32... Bxd5 {[%clk 0:00:07.1]} 33.
Rxd5 {[%clk 0:01:19.3]} 33... Ne4 {[%clk 0:00:08.6]} 34. Rxe5 {[%clk 0:01:07.3]}
34... Nc3+ {[%clk 0:00:09.5]} 35. Kb2 {[%clk 0:01:09.2]} 35... Nxb5 {[%clk
0:00:08.7]} 36. Rxb5 {[%clk 0:01:11.1]} 36... Rf2 {[%clk 0:00:09.8]} 37. Nc4
{[%clk 0:01:12.3]} 37... Rxg2 {[%clk 0:00:10.9]} 38. h5 {[%clk 0:00:58.4]} 38...
Rh2 {[%clk 0:00:10.6]} 39. Rf5 {[%clk 0:00:54.5]} 39... Kg7 {[%clk 0:00:09.5]}
40. Ne3 {[%clk 0:00:48.4]} 40... Re2 {[%clk 0:00:07.7]} 41. Rf3 {[%clk
0:00:41.5]} 41... Kh6 {[%clk 0:00:08.9]} 42. Nf5+ {[%clk 0:00:41.8]} 42... Kg5
{[%clk 0:00:07.7]} 43. Nd4 {[%clk 0:00:39.1]} 43... Rd2 {[%clk 0:00:07.3]} 44.
Rc3 {[%clk 0:00:35.7]} 44... Rxc3 {[%clk 0:00:05.2]} 45. Kxc3 {[%clk 0:00:37.6]}
45... Rd1 {[%clk 0:00:03.6]} 46. b4 {[%clk 0:00:38]} 46... Kxh5 {[%clk
0:00:04.4]} 47. b5 {[%clk 0:00:39.4]} 47... Rb1 {[%clk 0:00:04.6]} 48. Nb3
{[%clk 0:00:40.4]} 48... Rg1 {[%clk 0:00:05.2]} 49. Kb4 {[%clk 0:00:39.8]} 49...
Rg8 {[%clk 0:00:04.2]} 50. c4 {[%clk 0:00:41.2]} 50... Kg4 {[%clk 0:00:04.8]}
51. c5 {[%clk 0:00:34.9]} 51... h5 {[%clk 0:00:05.8]} 52. c6 {[%clk 0:00:35.3]}
52... h4 {[%clk 0:00:06.9]} 53. b6 {[%clk 0:00:35.4]} 53... h3 {[%clk 0:00:08]}
54. c7 {[%clk 0:00:36.8]} 54... h2 {[%clk 0:00:08.5]} 55. b7 {[%clk 0:00:38.1]}
55... h1=Q {[%clk 0:00:07.7]} 56. c8=Q+ {[%clk 0:00:40]} 56... Rxc8 {[%clk
0:00:07.8]} 57. bxc8=Q+ {[%clk 0:00:41.9]} 57... Kg3 {[%clk 0:00:07.9]} 58. Qg8+
{[%clk 0:00:40]} 58... Kf2 {[%clk 0:00:06.3]} 59. Ka3 {[%clk 0:00:30.8]} 59...
Qf3 {[%clk 0:00:05.7]} 60. Qh8 {[%clk 0:00:29.7]} 60... Kg2 {[%clk 0:00:05.5]}
61. Qg7+ {[%clk 0:00:28.6]} 61... Qg3 {[%clk 0:00:06.4]} 62. Qf8 {[%clk
0:00:27.8]} 62... Qf3 {[%clk 0:00:05.8]} 63. Qd8 {[%clk 0:00:27.8]} 63... Qg3
{[%clk 0:00:05.4]} 64. Kb2 {[%clk 0:00:28.1]} 64... Qf2+ {[%clk 0:00:06.3]} 65.
Nd2 {[%clk 0:00:28.9]} 65... Kh1 {[%clk 0:00:04.3]} 66. Qd5+ {[%clk 0:00:28.6]}
66... Qg2 {[%clk 0:00:04.8]} 67. Qd7 {[%clk 0:00:27]} 67... Qf2 {[%clk 0:00:04]}
68. Kc1 {[%clk 0:00:21.7]} 68... Qc5+ {[%clk 0:00:04.6]} 69. Kd1 {[%clk
0:00:20.8]} 69... Qg1+ {[%clk 0:00:05.3]} 70. Kc2 {[%clk 0:00:21.4]} 70... Qc5+
{[%clk 0:00:05.8]} 71. Kd3 {[%clk 0:00:22.7]} 71... Qa3+ {[%clk 0:00:05.2]} 72.
Ke2 {[%clk 0:00:23.5]} 72... Qa6+ {[%clk 0:00:06]} 73. Ke1 {[%clk 0:00:22.5]}
73... Qa1+ {[%clk 0:00:04.6]} 74. Kf2 {[%clk 0:00:23.4]} 74... Qf6+ {[%clk
0:00:05.4]} 75. Nf3 {[%clk 0:00:21.7]} 75... Qb2+ {[%clk 0:00:06]} 76. Nd2
{[%clk 0:00:20.7]} 76... Qf6+ {[%clk 0:00:06.5]} 77. Ke3 {[%clk 0:00:22]} 77...
Qe5+ {[%clk 0:00:07.3]} 78. Ne4 {[%clk 0:00:22.5]} 78... Qh5 {[%clk 0:00:05.7]}
79. Qc6 {[%clk 0:00:22]} 79... Qh3+ {[%clk 0:00:04]} 80. Kd2 {[%clk 0:00:19.3]}
80... Kg1 {[%clk 0:00:03.8]} 81. Qc5+ {[%clk 0:00:19.2]} 81... Kg2 {[%clk
0:00:04.1]} 82. Qg5+ {[%clk 0:00:19.5]} 82... Kf3 {[%clk 0:00:03.3]} 83. Qe3+
{[%clk 0:00:20.1]} 83... Kg2 {[%clk 0:00:04.3]} 84. Qf2+ {[%clk 0:00:21.4]}
84... Kh1 {[%clk 0:00:05.6]} 85. Qe1+ {[%clk 0:00:19.3]} 85... Kg2 {[%clk
0:00:06.5]} 86. Qe2+ {[%clk 0:00:20.7]} 86... Kh1 {[%clk 0:00:07.7]} 87. Nf2+
{[%clk 0:00:21.6]} 87... Kg2 {[%clk 0:00:07.3]} 88. Nxh3+ {[%clk 0:00:23]} 1-0

[Event "*** Titled Tuesday Blitz"]
[Site "Chess.com"]
[Date "2018.10.02"]
[Round "6"]
[White "Caterpiller35"]
[Black "francogreek"]
[Result "0-1"]
[WhiteElo "2310"]
[BlackElo "2356"]
[TimeControl "180+2"]
[EndTime "14:15:57 PDT"]
[Termination "francogreek won by resignation"]

1. d4 {[%clk 0:03:01.9]} 1... e6 {[%clk 0:03:00.2]} 2. Bf4 {[%clk 0:02:58.2]}
2... f5 {[%clk 0:02:59.1]} 3. e3 {[%clk 0:02:57.4]} 3... Nf6 {[%clk 0:02:59.7]}
4. c4 {[%clk 0:02:57.7]} 4... Be7 {[%clk 0:03:00.8]} 5. Nc3 {[%clk 0:02:59.1]}
5... O-O {[%clk 0:03:02.3]} 6. Qc2 {[%clk 0:03:00.5]} 6... d6 {[%clk 0:03:03.6]}
7. Nf3 {[%clk 0:03:00.5]} 7... h6 {[%clk 0:03:02.8]} 8. h3 {[%clk 0:02:58.4]}
8... a5 {[%clk 0:03:02.4]} 9. O-O-O {[%clk 0:02:58.9]} 9... Nc6 {[%clk 0:03:03]}
10. a3 {[%clk 0:02:59.2]} 10... Qe8 {[%clk 0:03:02.4]} 11. g4 {[%clk 0:02:59]}
11... fxg4 {[%clk 0:03:01.1]} 12. hxg4 {[%clk 0:03:00.9]} 12... Nxg4 {[%clk
0:03:02.4]} 13. Rg1 {[%clk 0:02:59.1]} 13... e5 {[%clk 0:03:03.6]} 14. Bg3
{[%clk 0:02:31.3]} 14... Rxf3 {[%clk 0:03:03.8]} 15. Be2 {[%clk 0:02:29]} 15...
Rf8 {[%clk 0:03:04.3]} 16. Nd5 {[%clk 0:02:26.9]} 16... Bf5 {[%clk 0:02:57.1]}
17. e4 {[%clk 0:02:23.6]} 17... Nxd4 {[%clk 0:02:55.4]} 18. Rxd4 {[%clk
0:02:23.9]} 18... exd4 {[%clk 0:02:55.7]} 19. exf5 {[%clk 0:02:24.2]} 19... Bg5+
{[%clk 0:02:49.8]} 20. f4 {[%clk 0:02:23.9]} 20... Ne3 {[%clk 0:02:47.2]} 21.
Nxe3 {[%clk 0:01:48.6]} 21... Qxe3+ {[%clk 0:02:46.3]} 22. Kb1 {[%clk
0:01:50.5]} 22... Qxg1+ {[%clk 0:02:47.5]} 0-1

[Event "*** Titled Tuesday Blitz"]
[Site "Chess.com"]
[Date "2018.10.02"]
[Round "6"]
[White "Thee-Chessboy"]
[Black "chenrip"]
[Result "1-0"]
[WhiteElo "2312"]
[BlackElo "2385"]
[TimeControl "180+2"]
[EndTime "14:17:28 PDT"]
[Termination "Thee-Chessboy won by resignation"]

1. d4 {[%clk 0:03:01.9]} 1... d5 {[%clk 0:03:00.2]} 2. c4 {[%clk 0:02:57.3]}
2... e5 {[%clk 0:03:01]} 3. dxe5 {[%clk 0:02:55.1]} 3... d4 {[%clk 0:03:01.8]}
4. Nf3 {[%clk 0:02:54]} 4... Nc6 {[%clk 0:03:02.2]} 5. Nbd2 {[%clk 0:02:52.1]}
5... Nge7 {[%clk 0:03:01.1]} 6. Nb3 {[%clk 0:02:51.3]} 6... Be6 {[%clk
0:02:56.9]} 7. Nbxd4 {[%clk 0:02:40.7]} 7... Bxc4 {[%clk 0:02:57.8]} 8. Qa4
{[%clk 0:02:26.5]} 8... Bd5 {[%clk 0:02:57.2]} 9. Bg5 {[%clk 0:02:17.2]} 9...
Bxf3 {[%clk 0:02:56.7]} 10. Nxf3 {[%clk 0:02:15.3]} 10... Qd5 {[%clk 0:02:49.5]}
11. Rd1 {[%clk 0:02:06.4]} 11... Qa5+ {[%clk 0:02:46.3]} 12. Qxa5 {[%clk
0:02:04.6]} 12... Nxa5 {[%clk 0:02:47.4]} 13. e3 {[%clk 0:01:57.9]} 13... Nec6
{[%clk 0:02:47.8]} 14. a3 {[%clk 0:01:51.1]} 14... h6 {[%clk 0:02:41.9]} 15. Bf4
{[%clk 0:01:50.2]} 15... g5 {[%clk 0:02:26.6]} 16. Bg3 {[%clk 0:01:49.9]} 16...
Rd8 {[%clk 0:02:11.5]} 17. Rxd8+ {[%clk 0:01:44.8]} 17... Kxd8 {[%clk
0:02:12.2]} 18. b4 {[%clk 0:01:39.9]} 18... Nb3 {[%clk 0:02:12.4]} 19. Bc4
{[%clk 0:01:35.2]} 19... g4 {[%clk 0:02:05.1]} 20. Nh4 {[%clk 0:01:24.8]} 1-0